Workbook

Sheet MSU
B1: Niko Vesanko | E1: 20.6.2005 Kankaanpää
B2: SUPERPESIS | E2: Runkosarja | I2: Kärkilyönnit (KL), pesänvälit | P2: Runkosarja TOP-30 | U2: Ylempi loppusarja | AB2: Ylempi loppusarja TOP-10 | AG2: Play off, voitot, voittoprosentti | AL2: Arvo-ottelut | AO2: Mitalit
B3: Vuosi | C3: Sija | D3: Seura | E3: OTT | F3: KUN | G3: LÖI | H3: TOI | I3: KL | J3: 0 > 1 | K3: 1 > 2 | L3: 2 > 3 | M3: 3 > k | N3: KL-% | P3: LÖI | Q3: TOI | R3: L+T | S3: KL | U3: OTT | V3: KUN | W3: LÖI | X3: TOI | Y3: KL | Z3: KL-% | AB3: LÖI | AC3: TOI | AD3: L+T | AE3: KL | AG3: Puolivälierät | AH3: Välierät | AI3: Pronssi | AJ3: Finaalit | AL3: IL | AM3: LL | AN3: hSM | AO3: K | AP3: H | AQ3: P
B4: 2021 | C4: 5. | D4: Manse PP | F4: suomensarja
B5: 2022 | C5: 8. | D5: PomPy | F5: suomensarja
B6: 2022 | C6: 13. | D6: KaMa | E6: 4 | F6: 0 | G6: 0 | H6: 1 | I6: 4 | J6: 3 | K6: 0 | L6: 1 | M6: 0 | N6: 50.0 % | O6: 8
B7: 2023 | C7: 8. | D7: PomPy | F7: suomensarja
B8: Yhteensä | E8: =SUM(E4:E7) -> 4 | F8: 0 | G8: 0 | H8: 1 | I8: 4 | J8: 3 | K8: 0 | L8: 1 | M8: 0 | N8: =PRODUCT(I8/O8) -> 50.0 % | O8: =SUM(O3:O7) -> 8 | P8: 0-0-0 | Q8: 0-0-0 | R8: 0-0-0 | S8: 0-0-0 | U8: =SUM(U4:U7) -> 0 | V8: =SUM(V4:V7) -> 0 | W8: =SUM(W4:W7) -> 0 | X8: =SUM(X4:X7) -> 0 | Y8: =SUM(Y4:Y7) -> 0 | Z8: =PRODUCT(N14) -> 0.0 % | AB8: 0-0-0 | AC8: 0-0-0 | AD8: 0-0-0 | AE8: 0-0-0 | AG8: 0/0 | AH8: 0/0 | AI8: 0/0 | AJ8: 0/0 | AL8: =SUM(AL4:AL7) -> 0 | AM8: 0 | AN8: 0 | AO8: 0 | AP8: 0 | AQ8: 0
AG9: 0.0 % | AH9: 0.0 % | AI9: 0.0 % | AJ9: 0.0 %
B10: Pesispörssi | D10: =SUM(F8:H8)+((I8-F8-G8)/3)+(E8/3)+(AL8*25)+(AM8*25)+(AN8*10)+(AO8*25)+(AP8*20)+(AQ8*15) -> 3.7
B12: URA SUPERISSA | E12: OTT | F12: KUN | G12: LÖI | H12: TOI | I12: KL | K12: ka/L | L12: ka/T | M12: ka/KL | N12: KL-% | P12: ENSIMMÄISET RUNKOSARJASSA | AG12: ENSIMMÄISET PUDOTUSPELEISSÄ | AL12: YLEISÖ
B13: Runkosarja | E13: =PRODUCT(E8) -> 4 | F13: =PRODUCT(F8) -> 0 | G13: =PRODUCT(G8) -> 0 | H13: =PRODUCT(H8) -> 1 | I13: =PRODUCT(I8) -> 4 | K13: =PRODUCT((F13+G13)/E13) -> 0.00 | L13: =PRODUCT(H13/E13) -> 0.25 | M13: =PRODUCT(I13/E13) -> 1.00 | N13: =PRODUCT(N8) -> 50.0 % | O13: =PRODUCT(O8) -> 8 | P13: Ottelu | R13: 24.07. 2022 SoJy - KaMa 2-0 (2-1, 18-5) | Z13: 1. ottelu | AC13: 17 v 1 kk 4 pv | AG13: Ottelu
B14: Ylempi loppusarja | P14: Lyöty | AG14: Lyöty
B15: Alempi loppusarja | P15: Tuotu | R15: 30.07. 2022 KoU - KaMa 1-0 (4-4, 6-2) | Z15: 3. ottelu | AC15: 17 v 1 kk 10 pv | AG15: Tuotu
B16: KAIKKI | E16: =SUM(E13:E15) -> 4 | F16: =SUM(F13:F15) -> 0 | G16: =SUM(G13:G15) -> 0 | H16: =SUM(H13:H15) -> 1 | I16: =SUM(I13:I15) -> 4 | K16: =PRODUCT((F16+G16)/E16) -> 0.00 | L16: =PRODUCT(H16/E16) -> 0.25 | M16: =PRODUCT(I16/E16) -> 1.00 | N16: =PRODUCT(I16/O16) -> 50.0 % | O16: =SUM(O13:O15) -> 8 | P16: Kunnari | AG16: Kunnari
O17: =SUM(O14:O16) -> 8
B18: Seurat | D18: KaMa = Kakaanpään Maila (1958), kasvattajaseura
D19: Manse PP = Manse PP, Tampere (2005)
D20: PomPy = Pomarkun Pyry (1945)

Sheet MSS
B1: Niko Vesanko | E1: 20.6.2005 Kankaanpää
B2: YKKÖSPESIS | E2: Runkosarja | L2: Runkosarja TOP-10 | Q2: Jatkosarjat | X2: SUOMENSARJA | AA2: Runkosarja | AH2: Runkosarja TOP-10 | AM2: Jatkosarjat
B3: Vuosi | C3: Sija | D3: Seura | E3: OTT | F3: KUN | G3: LÖI | H3: TOI | I3: KL | J3: KL-% | L3: LÖI | M3: TOI | N3: L+T | O3: KL | Q3: OTT | R3: KUN | S3: LÖI | T3: TOI | U3: KL | V3: KL-% | X3: Vuosi | Y3: Sija | Z3: Seura | AA3: OTT | AB3: KUN | AC3: LÖI | AD3: TOI | AE3: KL | AF3: KL-% | AH3: LÖI | AI3: TOI | AJ3: L+T | AK3: KL | AM3: OTT | AN3: KUN | AO3: LÖI | AP3: TOI | AQ3: KL | AR3: KL-%
X4: 2021 | Y4: 5. | Z4: Manse PP | AA4: 2 | AB4: 0 | AC4: 0 | AD4: 0 | AE4: 4 | AF4: 66.7 % | AG4: 6
X5: 2022 | Y5: 8. | Z5: PomPy | AA5: 14 | AB5: 0 | AC5: 10 | AD5: 4 | AE5: 52 | AF5: 55.9 % | AG5: 93
X6: 2023 | Y6: 8. | Z6: PomPy | AA6: 16 | AB6: 2 | AC6: 11 | AD6: 6 | AE6: 51 | AF6: 45.5 % | AG6: 112
B7: YHTEENSÄ | E7: =SUM(E4:E6) -> 0 | F7: =SUM(F4:F6) -> 0 | G7: =SUM(G4:G6) -> 0 | H7: =SUM(H4:H6) -> 0 | I7: =SUM(I4:I6) -> 0 | J7: 0.0 % | K7: =SUM(K6:K6) -> 0 | Q7: =SUM(Q4:Q6) -> 0 | R7: =SUM(R4:R6) -> 0 | S7: =SUM(S4:S6) -> 0 | T7: =SUM(T4:T6) -> 0 | U7: =SUM(U4:U6) -> 0 | V7: 0.0 % | W7: =SUM(W6:W6) -> 0 | X7: YHTEENSÄ | AA7: =SUM(AA4:AA6) -> 32 | AB7: =SUM(AB4:AB6) -> 2 | AC7: =SUM(AC4:AC6) -> 21 | AD7: =SUM(AD4:AD6) -> 10 | AE7: =SUM(AE4:AE6) -> 107 | AF7: =PRODUCT(AE7/AG7) -> 50.7 % | AG7: =SUM(AG4:AG6) -> 211 | AM7: =SUM(AM4:AM6) -> 0 | AN7: =SUM(AN4:AN6) -> 0 | AO7: =SUM(AO4:AO6) -> 0 | AP7: =SUM(AP4:AP6) -> 0 | AQ7: =SUM(AQ4:AQ6) -> 0 | AR7: 0.0 % | AS7: =SUM(AS6:AS6) -> 0
B9: KAIKKI OTTELUT | E9: OTT | F9: KUN | G9: LÖI | H9: TOI | I9: KL | J9: KL-% | L9: ka/L | M9: ka/T | N9: ka/l+t | O9: ka/kl | R9: Seurat | T9: KaMa = Kakaanpään Maila (1958), kasvattajaseura
B10: SUPERPESIS | E10: 4 | F10: 0 | G10: 0 | H10: 1 | I10: 4 | J10: 50.0 % | K10: =PRODUCT(I10/J10) -> 8 | L10: =PRODUCT((F10+G10)/E10) -> 0.00 | M10: =PRODUCT(H10/E10) -> 0.25 | N10: =PRODUCT((F10+G10+H10)/E10) -> 0.25 | O10: =PRODUCT(I10/E10) -> 1.00 | T10: Manse PP = Manse PP, Tampere (2005)
B11: YKKÖSPESIS | E11: =PRODUCT(E7+Q7) -> 0 | F11: =PRODUCT(F7+R7) -> 0 | G11: =PRODUCT(G7+S7) -> 0 | H11: =PRODUCT(H7+T7) -> 0 | I11: =PRODUCT(I7+U7) -> 0 | J11: 0.0 % | K11: =PRODUCT(K7+W7) -> 0 | L11: 0.00 | M11: 0.00 | N11: 0.00 | O11: 0.00 | T11: PomPy = Pomarkun Pyry (1945)
B12: SUOMENSARJA | E12: =PRODUCT(AA7+AM7) -> 32 | F12: =PRODUCT(AB7+AN7) -> 2 | G12: =PRODUCT(AC7+AO7) -> 21 | H12: =PRODUCT(AD7+AP7) -> 10 | I12: =PRODUCT(AE7+AQ7) -> 107 | J12: =PRODUCT(I12/K12) -> 50.7 % | K12: =PRODUCT(AG7+AS7) -> 211 | L12: =PRODUCT((F12+G12)/E12) -> 0.72 | M12: =PRODUCT(H12/E12) -> 0.31 | N12: =PRODUCT((F12+G12+H12)/E12) -> 1.03 | O12: =PRODUCT(I12/E12) -> 3.34
B13: YHTEENSÄ | E13: =SUM(E10:E12) -> 36 | F13: =SUM(F10:F12) -> 2 | G13: 21 | H13: 11 | I13: 111 | J13: =PRODUCT(I13/K13) -> 50.7 % | K13: =SUM(K10:K12) -> 219 | L13: =PRODUCT((F13+G13)/E13) -> 0.64 | M13: =PRODUCT(H13/E13) -> 0.31 | N13: =PRODUCT((F13+G13+H13)/E13) -> 0.94 | O13: =PRODUCT(I13/E13) -> 3.08
